Department Family,Date Paid,Expense Type,Expense Area,Supplier,Transaction Number,Amount,Vat Inclusive
Crown Prosecution Service ,02/03/22,Recoverable VAT control,Balance Sheet,Caretower Ltd Limited,172069,"12,240.00",Y
Crown Prosecution Service ,02/03/22,IT non capital software licences,Legal Reference and ICT Licenses,Caretower Ltd Limited,172069,"61,200.00",
Crown Prosecution Service ,02/03/22,External legal advice - Civil litigation,Other Corporate Programme Payments,Government Legal Department,503681,"148,892.62",Y
Crown Prosecution Service ,02/03/22,External legal advice - Civil litigation,Other Corporate Programme Payments,Government Legal Department,505699,"113,820.56",Y
Crown Prosecution Service ,02/03/22,Apprenticeship Levy payments Permanent,Other Corporate Programme Payments,HM Revenue and Customs,948PB000021422211,"111,264.04",
Crown Prosecution Service ,02/03/22,Apprenticeship Levy payments Permanent,Other Corporate Admin Payments,HM Revenue and Customs,948PB000021422211,"7,101.96",
Crown Prosecution Service ,02/03/22,National Insurance payable,Balance Sheet,HM Revenue and Customs,948PB000021422211,"4,417,219.69",
Crown Prosecution Service ,02/03/22,PAYE payable,Balance Sheet,HM Revenue and Customs,948PB000021422211,"3,542,056.16",
Crown Prosecution Service ,02/03/22,Crown Court Graduated Fee Scheme,Organised Crime London,2 Bedford Row Chambers,HLW195239,"33,998.82",Y
Crown Prosecution Service ,03/03/22,New Works: non capital,Estate and FM: Programme,Government Property Agency London,00000001/13707,"37,134.08",Y
Crown Prosecution Service ,03/03/22,New Works: non capital,Estate and FM: Programme,Government Property Agency London,00000001/7616,"122,070.04",Y
Crown Prosecution Service ,03/03/22,Crown Court Graduated Fee Scheme,North West Crown Court Hub,Lincoln House Chambers,249644 TSQC,"29,370.60",Y
Crown Prosecution Service ,03/03/22,Crown Court Graduated Fee Scheme,Mersey Cheshire Crown Court Unit,Exchange Chambers - Liverpool,596845 - GC,"31,380.60",Y
Crown Prosecution Service ,03/03/22,IT services,DTS Programme Project Cost,FlyForm LTD Cardiff,INV-10649,"21,895.99",
Crown Prosecution Service ,03/03/22,Recoverable VAT control,Balance Sheet,FlyForm LTD Cardiff,INV-10649,"4,379.21",Y
Crown Prosecution Service ,04/03/22,Crown Court Graduated Fee Scheme,South West Crown Court: South,Devon Chambers,53634 Kendall JM,"25,598.10",Y
Crown Prosecution Service ,07/03/22,Recoverable VAT control,Balance Sheet,Mendip Media Group Ltd Tiverton,0000000184,"6,998.00",Y
Crown Prosecution Service ,07/03/22,Transcriptions and Translation,Other Corporate Programme Payments,Mendip Media Group Ltd Tiverton,0000000184,"34,990.00",
Crown Prosecution Service ,07/03/22,Crown Court Graduated Fee Scheme,Counter Terrorism Unit: Internal Funding,St Pauls Chambers Leeds,159401 Riax ETC,"38,321.93",Y
Crown Prosecution Service ,07/03/22,Admin agency staff,DTS Programme Project Cost,Michael Page International Recruitment Limited Slough,6797201,"29,628.46",Y
Crown Prosecution Service ,07/03/22,Crown Court Graduated Fee Scheme,Thames Chiltern Crown Court Unit,Church Court Chambers,70305BAQC,"91,051.68",Y
Crown Prosecution Service ,07/03/22,Crown Court Graduated Fee Scheme,East Midlands Complex Casework Unit,No 5 Fountain Court Chambers,763215/MLH/SAUNDERS,"28,406.46",Y
Crown Prosecution Service ,07/03/22,Crown Court Graduated Fee Scheme,Organised Crime London,6 Kings Bench Walk- Chambers of D Fisher & D Perry,99833 DP,"44,411.47",Y
Crown Prosecution Service ,07/03/22,Forensic Science Agencies Preparation Fees,East Midlands Crown Court Section,Foresight Clinical Services Ltd Manchester,INV-29927,"28,440.00",Y
Crown Prosecution Service ,07/03/22,IT services,DTS Programme Project Cost,ICS.AI Ltd Basingstoke,INV-557,"33,737.70",Y
Crown Prosecution Service ,08/03/22,Lease liability non current lease payments,Balance Sheet,Government Property Agency London,00000001/15712,"51,967.50",
Crown Prosecution Service ,08/03/22,Lease liability non current lease payments,Balance Sheet,Government Property Agency London,00000001/15713,"74,220.00",
Crown Prosecution Service ,08/03/22,Landlord service charge,Estate and FM: Programme,Government Property Agency London,00000001/15714,"35,405.13",
Crown Prosecution Service ,08/03/22,Recoverable VAT control,Balance Sheet,Iron Mountain Ltd,0697299,"26,303.02",Y
Crown Prosecution Service ,08/03/22,Other managed/contractor services,Records Management Team,Iron Mountain Ltd,0697299,"131,515.09",
Crown Prosecution Service ,08/03/22,IT services,DTS Programme Project Cost,CGI IT UK Ltd,GB014076596,"38,526.36",Y
Crown Prosecution Service ,09/03/22,External legal advice - HR casework,Litigation,Government Legal Department,505889,"57,314.64",Y
Crown Prosecution Service ,09/03/22,Crown Court Graduated Fee Scheme,SFD London,2 Harcourt Buildings,JEB 111476,"35,276.16",Y
Crown Prosecution Service ,09/03/22,Crown Court Graduated Fee Scheme,SFD London,2 Harcourt Buildings,JO 111476,"71,032.14",Y
Crown Prosecution Service ,10/03/22,Crown Court Graduated Fee Scheme,South West Crown Court: South,Guildhall Chambers Bristol,193426AV,"31,073.51",Y
Crown Prosecution Service ,10/03/22,IT services,Other IT costs,Lumen Technologies UK Ltd,284100527/1074861,"45,600.97",Y
Crown Prosecution Service ,10/03/22,IT services,PSN Services Contract,Lumen Technologies UK Ltd,284109811/1075249,"117,639.82",
Crown Prosecution Service ,10/03/22,Recoverable VAT control,Balance Sheet,Lumen Technologies UK Ltd,284109811/1075249,"23,527.96",Y
Crown Prosecution Service ,10/03/22,Crown Court Very High Cost Cases Full Scheme,Cymru Wales Complex Casework Unit,Apex Chambers,45880-3/CLR,"29,610.00",Y
Crown Prosecution Service ,10/03/22,Recoverable VAT control,Balance Sheet,WIPRO Holdings London,90009322,"21,325.30",Y
Crown Prosecution Service ,10/03/22,IT services,End User Computing Contract,WIPRO Holdings London,90009322,"106,626.50",
Crown Prosecution Service ,10/03/22,IT services,DTS Programme Project Cost,WIPRO Holdings London,90013114,"70,874.53",Y
Crown Prosecution Service ,10/03/22,IT services,DTS Programme Project Cost,WIPRO Holdings London,90013115,"29,307.55",Y
Crown Prosecution Service ,10/03/22,IT services,DTS Programme Project Cost,WIPRO Holdings London,90015326,"32,607.00",Y
Crown Prosecution Service ,10/03/22,IT services,DTS Programme Project Cost,WIPRO Holdings London,90015358,"30,582.00",Y
Crown Prosecution Service ,10/03/22,Crown Court Graduated Fee Scheme,London North Complex Casework Unit,QEB Hollis Whiteman Chambers,EB 110032 A,"32,739.00",Y
Crown Prosecution Service ,10/03/22,Recoverable VAT control,Balance Sheet,CGI IT UK Ltd,GB014076322,"13,184.40",Y
Crown Prosecution Service ,10/03/22,IT services,Apps and Hosting Contract,CGI IT UK Ltd,GB014076322,"65,922.00",
Crown Prosecution Service ,10/03/22,Recoverable VAT control,Balance Sheet,CGI IT UK Ltd,GB014076774,"115,059.96",Y
Crown Prosecution Service ,10/03/22,IT services,Apps and Hosting Contract,CGI IT UK Ltd,GB014076774,"575,299.78",
Crown Prosecution Service ,10/03/22,Recoverable VAT control,Balance Sheet,CGI IT UK Ltd,GB014076782,"9,811.30",Y
Crown Prosecution Service ,10/03/22,IT services,Apps and Hosting Contract,CGI IT UK Ltd,GB014076782,"49,056.50",
Crown Prosecution Service ,10/03/22,Recoverable VAT control,Balance Sheet,CGI IT UK Ltd,GB014076783,"63,368.44",Y
Crown Prosecution Service ,10/03/22,IT services,Apps and Hosting Contract,CGI IT UK Ltd,GB014076783,"316,842.22",
Crown Prosecution Service ,10/03/22,IT services,DTS Programme Project Cost,Green Lemon Company Ltd Haywards Heath,GLC_Invoice_2022-03_398,"78,096.00",Y
Crown Prosecution Service ,10/03/22,Other managed/contractor services,DTS Programme Project Cost,Equal Experts London,INV-10077,"116,316.00",Y
Crown Prosecution Service ,10/03/22,Crown Court Graduated Fee Scheme,London North Crown Court Unit,2 Harcourt Buildings,NAL 109724,"32,076.36",Y
Crown Prosecution Service ,10/03/22,Crown Court Graduated Fee Scheme,Thames and Chiltern Complex Casework Unit,4 Breams Buildings,STQC 311210 A 9/3,"31,830.00",Y
Crown Prosecution Service ,11/03/22,Crown Court Graduated Fee Scheme,Thames Chiltern Crown Court Unit,5 Paper Buildings,113699/JMC,"37,506.12",Y
Crown Prosecution Service ,11/03/22,Crown Court Graduated Fee Scheme,North East Complex Casework Unit,Kings Bench Walk Leeds,120787//MB,"29,235.60",Y
Crown Prosecution Service ,11/03/22,Crown Court Graduated Fee Scheme,Thames Chiltern Crown Court Unit,Mountford Chambers ,174065,"27,602.52",Y
Crown Prosecution Service ,11/03/22,Crown Court Graduated Fee Scheme,London North Crown Court Unit,23 Essex Street Chambers,181715-NR-TRIAL,"25,852.20",Y
Crown Prosecution Service ,11/03/22,Crown Court Graduated Fee Scheme,Thames and Chiltern Complex Casework Unit,23 Essex Street Chambers,191567-LG,"50,347.92",Y
Crown Prosecution Service ,11/03/22,Crown Court Graduated Fee Scheme,North West Crown Court Hub,23 Essex Street Chambers,194287-FF,"25,328.59",Y
Crown Prosecution Service ,11/03/22,Transcriptions and Translation,Other Corporate Programme Payments,AVR Transcription Ltd Bolton,FEB22-35615,"40,330.72",
Crown Prosecution Service ,11/03/22,Recoverable VAT control,Balance Sheet,AVR Transcription Ltd Bolton,FEB22-35615,"8,066.14",Y
Crown Prosecution Service ,14/03/22,Crown Court Very High Cost Cases Full Scheme,Organised Crime London,6 Kings Bench Walk- Chambers of D Fisher & D Perry,101789 JH.,"35,600.81",Y
Crown Prosecution Service ,14/03/22,Crown Court Graduated Fee Scheme,Yorks and Humbs CC Legal,Dere Street Barristers,368453 JE1,"33,788.52",Y
Crown Prosecution Service ,15/03/22,Other managed/contractor services,Operational HR Costs,Thrive Therapeutic Software Ltd Stratford,0000000006,"24,300.00",Y
Crown Prosecution Service ,15/03/22,Other managed/contractor services,People and Business Change,Thrive Therapeutic Software Ltd Stratford,0000000006,"2,700.00",Y
Crown Prosecution Service ,15/03/22,Crown Court Graduated Fee Scheme,London North Complex Casework Unit,6 Kings Bench Walk- Chambers of D Fisher & D Perry,101773 PRA,"52,378.56",Y
Crown Prosecution Service ,16/03/22,Crown Court Graduated Fee Scheme,London North Complex Casework Unit,2 Hare Court Chambers -Chambers of Orlando Pownall,115937(3),"54,495.00",Y
Crown Prosecution Service ,16/03/22,Crown Court Graduated Fee Scheme,East Midlands Crown Court Section,36 Bedford Row,212552-LJ,"54,614.88",Y
Crown Prosecution Service ,16/03/22,Crown Court Graduated Fee Scheme,South West Crown Court: North,2 Harcourt Buildings,JD 116101,"29,443.98",Y
Crown Prosecution Service ,17/03/22,Crown Court Graduated Fee Scheme,London North Crown Court Unit,23 Essex Street Chambers,180903-AU-TRIAL,"27,584.40",Y
Crown Prosecution Service ,17/03/22,Crown Court Graduated Fee Scheme,London North Crown Court Unit,23 Essex Street Chambers,180903-CA-TRIAL1,"41,377.80",Y
Crown Prosecution Service ,17/03/22,Crown Court Graduated Fee Scheme,North West Crown Court Hub,Exchange Chambers - Manchester,542230 DPB ..,"25,921.80",Y
Crown Prosecution Service ,17/03/22,Crown Court Graduated Fee Scheme,West Midlands Complex Casework Unit,St Philips Chambers,665597 T BPC,"41,468.28",Y
Crown Prosecution Service ,17/03/22,Crown Court Graduated Fee Scheme,West Midlands Complex Casework Unit,St Philips Chambers,665597 T PHB,"29,552.28",Y
Crown Prosecution Service ,17/03/22,UK Hotels,Operational HR Costs,Clarity Travel Management,CPSHQ0310,70.50,Y
Crown Prosecution Service ,17/03/22,UK National rail travel,Director of Finance,Clarity Travel Management,CPSHQ0310,616.90,
Crown Prosecution Service ,17/03/22,UK Hotels,Learning and Development General,Clarity Travel Management,CPSHQ0310,240.00,Y
Crown Prosecution Service ,17/03/22,UK Hotels,DTS Service Management,Clarity Travel Management,CPSHQ0310,78.00,Y
Crown Prosecution Service ,17/03/22,UK Hotels,Private Office,Clarity Travel Management,CPSHQ0310,300.50,Y
Crown Prosecution Service ,17/03/22,UK Hotels,Operational Change,Clarity Travel Management,CPSHQ0310,577.98,Y
Crown Prosecution Service ,17/03/22,UK Hotels,Operational Business Support,Clarity Travel Management,CPSHQ0310,667.32,Y
Crown Prosecution Service ,17/03/22,UK Hotels,Information Access Team,Clarity Travel Management,CPSHQ0310,425.48,Y
Crown Prosecution Service ,17/03/22,UK Hotels,ICT Strategy,Clarity Travel Management,CPSHQ0310,45.42,Y
Crown Prosecution Service ,17/03/22,UK Hotels,Operational Process Development,Clarity Travel Management,CPSHQ0310,752.00,Y
Crown Prosecution Service ,17/03/22,UK Hotels,HR Systems and Information,Clarity Travel Management,CPSHQ0310,118.00,Y
Crown Prosecution Service ,17/03/22,UK Hotels,Operational Security Team,Clarity Travel Management,CPSHQ0310,"1,136.79",Y
Crown Prosecution Service ,17/03/22,UK Hotels,Finance Operations,Clarity Travel Management,CPSHQ0310,131.00,Y
Crown Prosecution Service ,17/03/22,UK Hotels,Analysis and Delivery,Clarity Travel Management,CPSHQ0310,342.00,Y
Crown Prosecution Service ,17/03/22,UK Hotels,Commercial,Clarity Travel Management,CPSHQ0310,644.00,Y
Crown Prosecution Service ,17/03/22,UK Hotels,Solutions Development,Clarity Travel Management,CPSHQ0310,"1,048.42",Y
Crown Prosecution Service ,17/03/22,UK Hotels,Operational Performance,Clarity Travel Management,CPSHQ0310,506.00,Y
Crown Prosecution Service ,17/03/22,UK Hotels,HR Operations,Clarity Travel Management,CPSHQ0310,250.00,Y
Crown Prosecution Service ,17/03/22,UK Hotels,People and Business Change,Clarity Travel Management,CPSHQ0310,491.00,Y
Crown Prosecution Service ,17/03/22,UK Hotels,Central Legal Training Team,Clarity Travel Management,CPSHQ0310,"1,142.00",Y
Crown Prosecution Service ,17/03/22,UK National rail travel,ICT Case Management,Clarity Travel Management,CPSHQ0310,183.80,
Crown Prosecution Service ,17/03/22,UK National rail travel,Legal Trainee Salaries,Clarity Travel Management,CPSHQ0310,114.80,
Crown Prosecution Service ,17/03/22,UK National rail travel,Learning and Development General,Clarity Travel Management,CPSHQ0310,772.60,
Crown Prosecution Service ,17/03/22,UK National rail travel,People and Business Change,Clarity Travel Management,CPSHQ0310,"1,974.10",
Crown Prosecution Service ,17/03/22,UK National rail travel,Private Office,Clarity Travel Management,CPSHQ0310,617.80,
Crown Prosecution Service ,17/03/22,UK National rail travel,HR Operations,Clarity Travel Management,CPSHQ0310,207.90,
Crown Prosecution Service ,17/03/22,UK National rail travel,HR Business Management,Clarity Travel Management,CPSHQ0310,43.70,
Crown Prosecution Service ,17/03/22,UK National rail travel,Operational Process Development,Clarity Travel Management,CPSHQ0310,"2,410.60",
Crown Prosecution Service ,17/03/22,UK National rail travel,Operational Performance,Clarity Travel Management,CPSHQ0310,735.80,
Crown Prosecution Service ,17/03/22,UK National rail travel,Operational HR Costs,Clarity Travel Management,CPSHQ0310,895.10,
Crown Prosecution Service ,17/03/22,UK National rail travel,Estates,Clarity Travel Management,CPSHQ0310,303.30,
Crown Prosecution Service ,17/03/22,UK National rail travel,Analysis and Delivery,Clarity Travel Management,CPSHQ0310,256.00,
Crown Prosecution Service ,17/03/22,UK National rail travel,Solutions Development,Clarity Travel Management,CPSHQ0310,346.20,
Crown Prosecution Service ,17/03/22,UK National rail travel,Operational Security Team,Clarity Travel Management,CPSHQ0310,897.40,
Crown Prosecution Service ,17/03/22,UK National rail travel,ICT Strategy,Clarity Travel Management,CPSHQ0310,743.00,
Crown Prosecution Service ,17/03/22,UK National rail travel,ICT Case Management,Clarity Travel Management,CPSHQ0310,546.60,
Crown Prosecution Service ,17/03/22,UK National rail travel,DTUS,Clarity Travel Management,CPSHQ0310,107.10,
Crown Prosecution Service ,17/03/22,UK National rail travel,Resourcing,Clarity Travel Management,CPSHQ0310,961.15,
Crown Prosecution Service ,17/03/22,UK National rail travel,Strategy and Policy,Clarity Travel Management,CPSHQ0310,586.90,
Crown Prosecution Service ,17/03/22,UK National rail travel,Operational Change,Clarity Travel Management,CPSHQ0310,"3,717.35",
Crown Prosecution Service ,17/03/22,UK National rail travel,HR Business Partnering,Clarity Travel Management,CPSHQ0310,853.80,
Crown Prosecution Service ,17/03/22,UK National rail travel,Central Legal Training Team,Clarity Travel Management,CPSHQ0310,813.70,
Crown Prosecution Service ,17/03/22,UK National rail travel,Operational Business Support,Clarity Travel Management,CPSHQ0310,952.50,
Crown Prosecution Service ,17/03/22,UK National rail travel,DTS Service Management,Clarity Travel Management,CPSHQ0310,246.80,
Crown Prosecution Service ,17/03/22,UK Hotels,HR Business Partnering,Clarity Travel Management,CPSHQ0310,81.00,Y
Crown Prosecution Service ,18/03/22,Crown Court Graduated Fee Scheme,London North Complex Casework Unit,2 Hare Court Chambers -Chambers of Orlando Pownall,114682..,"51,192.04",Y
Crown Prosecution Service ,18/03/22,Crown Court Graduated Fee Scheme,Thames Chiltern Crown Court Unit,Nine Bedford Row (9 Bedford Row),141643mha,"32,750.28",Y
Crown Prosecution Service ,18/03/22,Recruitment general costs,Operational Performance,BPP Professional Education,14609,"57,501.60",Y
Crown Prosecution Service ,18/03/22,Crown Court Graduated Fee Scheme,London North Complex Casework Unit,Red Lion Chambers (18 RLC),159999MNtrialfees,"46,835.40",Y
Crown Prosecution Service ,21/03/22,Crown Court Graduated Fee Scheme,London South Crown Court Unit,Nine Bedford Row (9 Bedford Row),138486kc2,"45,569.88",Y
Crown Prosecution Service ,21/03/22,Crown Court Graduated Fee Scheme,London South Crown Court Unit,Nine Bedford Row (9 Bedford Row),140950kmu,"30,539.81",Y
Crown Prosecution Service ,21/03/22,Crown Court Graduated Fee Scheme,East Midlands Crown Court Section,36 Bedford Row,212737-CD,"28,999.50",Y
Crown Prosecution Service ,21/03/22,IT services,DTS Programme Project Cost,CGI IT UK Ltd,GB014077030,"65,663.76",Y
Crown Prosecution Service ,21/03/22,Recoverable VAT control,Balance Sheet,CGI IT UK Ltd,GB014077117,"10,685.45",Y
Crown Prosecution Service ,21/03/22,IT services,Service Desk Contract,CGI IT UK Ltd,GB014077117,"53,427.26",
Crown Prosecution Service ,21/03/22,IT services,DTS Programme Project Cost,ICS.AI Ltd Basingstoke,INV-563,"41,166.00",Y
Crown Prosecution Service ,21/03/22,IT services,DTS Programme Project Cost,ICS.AI Ltd Basingstoke,INV-570,"27,106.50",Y
Crown Prosecution Service ,21/03/22,IT services,DTS Programme Project Cost,eSynergy Solutions Ltd,INV00000478,"43,680.00",Y
Crown Prosecution Service ,21/03/22,IT services,DTS Programme Project Cost,eSynergy Solutions Ltd,INV00000480,"96,990.00",Y
Crown Prosecution Service ,21/03/22,IT services,DTS Programme Project Cost,eSynergy Solutions Ltd,INV00000492,"200,450.88",Y
Crown Prosecution Service ,21/03/22,Crown Court Graduated Fee Scheme,London North Complex Casework Unit,5 King's Bench Walk,MHQC 174231,"27,157.20",Y
Crown Prosecution Service ,22/03/22,New Works: non capital,Estate and FM: Programme,Government Property Agency London,00000001/14436,"58,786.37",Y
Crown Prosecution Service ,22/03/22,Recoverable VAT control,Balance Sheet,Government Property Agency London,00000001/15670,"14,835.00",Y
Crown Prosecution Service ,22/03/22,Reactive Maintenance,Estate and FM: Programme,Government Property Agency London,00000001/15670,"73,508.14",
Crown Prosecution Service ,22/03/22,Reactive Maintenance,Estate and FM: Administration,Government Property Agency London,00000001/15670,666.86,
Crown Prosecution Service ,22/03/22,Short term leases from 2 to 12 months: Property,Estate and FM: Programme,Government Property Agency London,00000001/3646,"34,727.10",
Crown Prosecution Service ,22/03/22,Short term leases from 2 to 12 months: Property,Estate and FM: Programme,Government Property Agency London,00000001/5537,"34,727.10",
Crown Prosecution Service ,22/03/22,National non domestic rates,Estate and FM: Programme,Government Property Agency London,00000001/5802,"25,344.00",
Crown Prosecution Service ,22/03/22,Landlord service charge,Estate and FM: Programme,Government Property Agency London,00000001/5802,"23,780.86",
Crown Prosecution Service ,22/03/22,Crown Court Graduated Fee Scheme,North East Crown Court Unit,Dere Street Barristers,365330 DC2,"27,978.48",Y
Crown Prosecution Service ,23/03/22,Other accommodation costs,Estate and FM: Programme,Government Property Agency London,00000001/15711,"67,851.00",
Crown Prosecution Service ,23/03/22,Crown Court Very High Cost Cases Full Scheme,Organised Crime London,6 Kings Bench Walk- Chambers of D Fisher & D Perry,101789 MBIS..,"27,735.74",Y
Crown Prosecution Service ,23/03/22,Data Communications,Other IT costs,British Telecommunications Plc,GB11299898M115,"32,404.32",
Crown Prosecution Service ,23/03/22,IT services,DTS Programme Project Cost,ICS.AI Ltd Basingstoke,INV-558,"55,624.32",Y
Crown Prosecution Service ,23/03/22,Salary sacrifice suspense,Balance Sheet,Edenred,INV25396001,"30,833.70",
Crown Prosecution Service ,24/03/22,Crown Court Graduated Fee Scheme,West Midlands Complex Casework Unit,6 Kings Bench Walk- Chambers of D Fisher & D Perry,101597 DEN,"51,611.88",Y
Crown Prosecution Service ,24/03/22,Crown Court Very High Cost Cases Full Scheme,Organised Crime London,23 Essex Street Chambers,177779-LWI-STAGE18,"27,582.88",Y
Crown Prosecution Service ,24/03/22,Crown Court Graduated Fee Scheme,London North Complex Casework Unit,5 King's Bench Walk,CNQC171035,"61,207.20",Y
Crown Prosecution Service ,24/03/22,Crown Court Graduated Fee Scheme,London North Complex Casework Unit,5 King's Bench Walk,JB171035,"30,924.00",Y
Crown Prosecution Service ,25/03/22,Crown Court Graduated Fee Scheme,SFD London,2 Harcourt Buildings,107906 DH TRIAL2,"27,723.60",Y
Crown Prosecution Service ,25/03/22,Crown Court Graduated Fee Scheme,SFD London,2 Harcourt Buildings,107906 TCH TRIAL 2,"40,993.80",Y
Crown Prosecution Service ,25/03/22,Crown Court Graduated Fee Scheme,SFD London,2 Harcourt Buildings,107907 DH TRIAL1,"33,544.20",Y
Crown Prosecution Service ,25/03/22,Crown Court Graduated Fee Scheme,Thames Chiltern Crown Court Unit,36 Bedford Row,213699-CD,"30,261.12",Y
Crown Prosecution Service ,25/03/22,Crown Court Graduated Fee Scheme,London North Complex Casework Unit,5 King's Bench Walk,MHQC170102,"82,374.78",Y
Crown Prosecution Service ,29/03/22,Recoverable VAT control,Balance Sheet,Government Property Agency London,00000001/16766,"2,568.51",Y
Crown Prosecution Service ,29/03/22,Landlord service charge,Estate and FM: Administration,Government Property Agency London,00000001/16766,"1,823.74",
Crown Prosecution Service ,29/03/22,Landlord service charge,Estate and FM: Programme,Government Property Agency London,00000001/16766,"31,949.18",
Crown Prosecution Service ,29/03/22,Facilities management,Estate and FM: Programme,Government Property Agency London,00000001/16766,"12,842.56",
Crown Prosecution Service ,29/03/22,Crown Court Graduated Fee Scheme,London North Complex Casework Unit,2 Hare Court Chambers -Chambers of Orlando Pownall,115981.,"158,220.30",Y
Crown Prosecution Service ,29/03/22,Crown Court Graduated Fee Scheme,East of England Crown Court,Red Lion Chambers (18 RLC),163928SS,"33,834.60",Y
Crown Prosecution Service ,29/03/22,Recoverable VAT control,Balance Sheet,Lumen Technologies UK Ltd,284112161/1075884,"30,200.51",Y
Crown Prosecution Service ,29/03/22,IT services,PSN Connectivity Contract,Lumen Technologies UK Ltd,284112161/1075884,"151,002.56",
Crown Prosecution Service ,29/03/22,Data Communications,PSN Services Contract,Lumen Technologies UK Ltd,284488751/1078769,"73,996.86",Y
Crown Prosecution Service ,29/03/22,Crown Court Graduated Fee Scheme,Cymru Wales South East Crown Court,18 St John Street - Chambers of Peter Birkett QC,290477-1/MAB,"83,204.76",Y
Crown Prosecution Service ,29/03/22,Crown Court Graduated Fee Scheme,Cymru Wales North Crown Court,Apex Chambers,45642-2/PR,"35,958.00",Y
Crown Prosecution Service ,29/03/22,Crown Court Graduated Fee Scheme,SFD North,Exchange Chambers - Liverpool,539449 - KS,"33,329.28",Y
Crown Prosecution Service ,29/03/22,IT services,End User Computing Contract,WIPRO Holdings London,5700000040,"106,626.50",
Crown Prosecution Service ,29/03/22,Recoverable VAT control,Balance Sheet,WIPRO Holdings London,5700000040,"21,325.30",Y
Crown Prosecution Service ,29/03/22,IT services,DTS Programme Project Cost,WIPRO Holdings London,90050441,"31,158.48",Y
Crown Prosecution Service ,29/03/22,Recoverable VAT control,Balance Sheet,CGI IT UK Ltd,GB014077498,"13,184.40",Y
Crown Prosecution Service ,29/03/22,IT services,Apps and Hosting Contract,CGI IT UK Ltd,GB014077498,"65,922.00",
Crown Prosecution Service ,29/03/22,Crown Court Graduated Fee Scheme,London North Complex Casework Unit,5 King's Bench Walk,LO171132,"84,300.24",Y
Crown Prosecution Service ,29/03/22,Crown Court Graduated Fee Scheme,London North Crown Court Unit,QEB Hollis Whiteman Chambers,RS 108135 F,"51,495.84",Y
Crown Prosecution Service ,29/03/22,Crown Court Graduated Fee Scheme,London North Complex Casework Unit,QEB Hollis Whiteman Chambers,WB 109898,"48,316.20",Y
Crown Prosecution Service ,31/03/22,Professional subscriptions and memberships,Practising Certificates,General Council Of The Bar,INV-57681-K8F0C9,"252,466.00",
